bitfinex-derivatives/quotes_ETHF0:USTF0_20241018
["timestamp","ask_amount","ask_price","bid_price","bid_amount"]
[1729246720654,0.38029,2630.2,2630.1,1.37]
[1729246721048,0.38029,2630.2,2630.1,1.7994]
[1729246721552,1.75029,2630.2,2630.1,0.4294]
[1729246723651,5.1724,2630.2,2629.8,1.37]
[1729246723954,5.1724,2630.2,2629.7,1.37]
[1729246723955,0.38035,2629.8,2629.7,1.37]
[1729246724850,0.79045,2629.8,2629.7,1.37]
[1729246725651,0.79045,2629.8,2629.5,1.37]
[1729246725652,8.7903,2629.8,2629.5,1.37]
[1729246725855,0.38038,2629.6,2629.5,1.37]
[1729246726057,1.37,2629.6,2629.4,1.37]
[1729246726351,0.77359,2629.5,2629.4,1.37]
[1729246726556,1.18489,2629.5,2629.4,1.37]
[1729246728846,0.77359,2629.5,2629.4,3.1204]
[1729246729065,0.77359,2629.5,2629.4,1.7504]
[1729246729658,0.38039,2629.6,2629.5,0.38039]
[1729246729868,0.38039,2629.6,2629.5,1.37]
[1729246735460,3.2078,2629.7,2629.6,0.38038]
[1729246735657,3.58816,2629.7,2629.6,1.75038]
[1729246736461,0.38036,2629.7,2629.6,1.75038]
[1729246740569,0.38036,2629.7,2629.6,1.37]
[1729246740766,1.37,2629.7,2629.3,0.8264]
[1729246740969,1.7504,2629.4,2629.3,0.78532]
[1729246741268,0.3804,2629.4,2629.3,2.15532]
[1729246741466,41.1804,2629.4,2629.3,2.15532]
[1729246741670,41.1804,2629.4,2629.3,1.7749]
[1729246742166,0.3804,2629.4,2629.3,1.7749]
[1729246742568,42.5676,2629.5,2629.2,1.37]
[1729246742871,0.38043,2629.2,2629.1,1.7981]
[1729246743068,0.38043,2629.2,2629.1,0.4281]
[1729246743069,4.95823,2629.2,2629.1,0.4281]
[1729246743370,0.38046,2629.0,2628.9,1.37]
[1729246743579,1.75046,2629.0,2628.9,1.37]
[1729246745679,1.75046,2629.0,2628.7,0.4281]
[1729246745680,1.37,2629.0,2628.7,0.4281]
[1729246745878,1.75049,2628.8,2628.7,1.7981]
[1729246746075,0.38049,2628.8,2628.7,1.7981]
[1729246746590,0.38049,2628.9,2628.8,0.38049]
[1729246746789,0.38049,2628.9,2628.8,1.75049]
[1729246747785,0.38049,2628.9,2628.8,1.37]
[1729246749185,1.75049,2628.9,2628.8,1.37]
[1729246749890,1.75048,2628.9,2628.8,1.37]
[1729246750188,1.75048,2628.9,2628.7,0.4281]
[1729246750189,0.38049,2628.8,2628.7,1.37]
[1729246750378,0.38051,2628.7,2628.6,1.37]
[1729246750579,0.77501,2628.7,2628.6,1.37]
[1729246753478,2.14501,2628.7,2628.6,1.37]
[1729246753888,2.14501,2628.7,2627.7,0.95161]
[1729246753889,7.8695,2628.7,2627.9,3.2078]
[1729246754087,7.8695,2628.7,2628.0,2.14671]
[1729246754088,1.75061,2628.1,2628.0,2.14671]
[1729246754380,1.75061,2628.1,2628.0,1.7661]
[1729246754992,4.1592,2628.4,2627.6,3.6365]
[1729246754993,3.2078,2628.4,2627.6,3.6365]
[1729246755195,3.2078,2628.9,2627.8,4.15939]
[1729246755492,2.17681,2628.7,2628.6,1.37]
[1729246755698,0.38057,2628.3,2628.1,0.38058]
[1729246756199,0.38056,2628.3,2628.1,0.38058]
[1729246756491,0.38056,2628.3,2628.2,1.37]
[1729246756697,0.38056,2628.4,2628.2,1.75058]
[1729246756893,0.38056,2628.4,2628.3,1.37]
[1729246757289,1.75056,2628.4,2628.3,1.37]
[1729246757494,1.75055,2628.4,2628.3,1.37]
[1729246764689,0.38056,2628.3,2628.1,0.79568]
[1729246764995,0.38061,2628.0,2627.9,0.77672]
[1729246765300,0.38061,2628.0,2627.9,2.14672]
[1729246765888,0.787,2628.1,2628.0,0.38061]
[1729246766089,0.38061,2628.0,2627.9,1.7661]
[1729246766298,0.38061,2628.0,2627.9,2.14671]
[1729246766500,2.157,2628.1,2628.0,0.38061]
[1729246766694,2.157,2628.1,2628.0,1.37]
[1729246767392,2.157,2628.1,2627.9,0.77671]
[1729246767393,0.38063,2627.9,2627.8,1.75063]
[1729246768203,0.38061,2628.0,2627.9,0.38062]
[1729246768391,0.38061,2628.0,2627.9,1.75062]
[1729246769097,0.4064,2628.1,2627.9,1.37]
[1729246769291,0.38061,2628.0,2627.9,1.75061]
[1729246769491,0.4064,2628.1,2628.0,0.38061]
[1729246769492,0.787,2628.1,2628.0,0.38061]
[1729246769692,0.787,2628.1,2628.0,1.37]
[1729246770088,0.4064,2628.1,2628.0,1.75061]
[1729246770300,0.38059,2628.1,2628.0,1.7506]
[1729246770504,1.75059,2628.1,2628.0,1.7506]
[1729246771302,1.37,2628.1,2628.0,1.7506]
[1729246773497,2.99128,2628.2,2628.0,1.37]
[1729246773804,2.56288,2628.2,2628.1,1.75059]
[1729246774700,1.19288,2628.2,2628.1,1.75059]
[1729246774900,0.38058,2628.2,2628.1,1.75059]
[1729246778694,0.38058,2628.2,2628.1,1.37]
[1729246779004,1.75058,2628.2,2628.1,1.75059]
[1729246782401,0.38057,2628.3,2628.2,0.38057]
[1729246782701,0.38057,2628.3,2628.2,1.75057]
[1729246783601,0.38057,2628.3,2628.2,1.37]
[1729246784914,0.38057,2628.3,2628.2,1.75058]
[1729246786010,0.38057,2628.3,2628.2,1.37]
[1729246786400,3.5981,2628.5,2628.2,1.37]
[1729246786705,3.97864,2628.5,2628.4,1.37]
[1729246787104,3.97864,2628.5,2628.4,1.7687]
[1729246787702,0.77084,2628.5,2628.4,1.7687]
[1729246793707,0.38053,2628.6,2628.5,0.38054]
[1729246793913,0.78481,2628.7,2628.6,0.38052]
[1729246794111,0.78481,2628.7,2628.6,1.75052]
[1729246798323,0.38051,2628.7,2628.6,1.75052]
[1729246798523,3.2078,2628.8,2628.6,1.37]
[1729246798722,3.5883,2628.8,2628.7,1.75051]
[1729246800226,3.5883,2628.8,2628.7,1.37]
[1729246800423,0.38052,2628.6,2628.5,0.816]
[1729246800640,2.55571,2628.7,2628.6,1.37]
[1729246801316,1.18571,2628.7,2628.6,1.75052]
[1729246801926,4.5778,2628.8,2628.7,0.38051]
[1729246801927,3.2078,2628.8,2628.7,0.38051]
[1729246802222,5.09602,2629.5,2628.7,6.0065]
[1729246802223,0.8103,2629.1,2628.7,6.0065]
[1729246802423,0.38047,2629.0,2628.9,0.38047]
[1729246802729,1.19075,2629.1,2629.0,0.38046]
[1729246803021,1.19075,2629.1,2629.0,1.75046]
[1729246803919,1.19075,2629.1,2629.0,1.37]
[1729246804329,2.1803,2629.1,2628.8,0.4144]
[1729246804626,0.38049,2628.8,2628.7,1.37]
[1729246805039,0.38051,2628.7,2628.6,1.37]
[1729246805325,1.22041,2628.7,2628.6,1.37]
[1729246809527,4.15896,2629.1,2628.7,0.38051]
[1729246809528,4.5778,2629.1,2628.7,0.38051]
[1729246809722,4.5778,2629.1,2628.4,0.4242]
[1729246809723,0.38048,2628.9,2628.8,0.38049]
[1729246810029,0.38049,2628.9,2628.5,0.38054]
[1729246810225,0.38049,2628.9,2628.8,0.38049]
[1729246810731,1.59947,2629.0,2628.4,1.37556]
[1729246810922,1.59947,2629.0,2628.9,1.37]
[1729246811117,0.4013,2629.0,2628.9,1.75048]
[1729246812028,0.4013,2629.0,2628.9,0.38048]
[1729246812731,0.38046,2629.1,2628.8,3.3982]
[1729246813030,0.3804,2629.4,2629.2,0.38043]
[1729246813235,0.3804,2629.4,2629.3,0.4282]
[1729246814733,0.38045,2629.1,2629.0,0.38046]
[1729246815126,3.2078,2629.5,2628.9,3.3684]
[1729246815333,3.2078,2629.5,2629.1,0.38044]
[1729246815534,0.38043,2629.2,2629.1,0.38044]
[1729246816437,0.38043,2629.3,2629.1,0.38044]
[1729246819031,0.3804,2629.4,2629.1,0.38044]
[1729246819232,3.2078,2629.5,2628.9,3.3684]
[1729246819437,0.38044,2629.2,2629.1,0.38045]
[1729246819836,0.38044,2629.2,2628.9,3.3684]
[1729246820137,0.38043,2629.3,2629.2,0.38043]
[1729246820638,0.38043,2629.3,2628.9,3.3684]
[1729246820639,3.2078,2629.5,2628.9,3.3684]
[1729246820839,0.38045,2629.1,2629.0,0.38046]
[1729246821032,0.38044,2629.2,2629.1,0.38045]
[1729246821533,3.2078,2629.5,2628.9,3.3684]
[1729246821739,0.76976,2629.1,2629.0,0.38046]
[1729246821942,0.38046,2629.0,2628.9,3.74887]
[1729246822137,0.80906,2629.0,2628.9,3.74887]
[1729246822336,0.4286,2629.0,2628.9,3.74887]
[1729246822535,0.80906,2629.0,2628.9,3.74887]
[1729246823648,0.80906,2629.0,2628.9,3.74888]
[1729246824444,0.4286,2629.0,2628.9,3.74888]
[1729246824741,0.3893,2629.1,2628.9,3.3684]
[1729246824932,0.3893,2629.1,2629.0,0.38046]
[1729246825440,0.76975,2629.1,2629.0,0.38046]
[1729246827346,0.3893,2629.1,2629.0,0.38046]
[1729246827640,0.76975,2629.1,2629.0,0.38046]
[1729246828535,0.38043,2629.3,2629.2,0.38043]
[1729246829340,0.8188,2629.4,2629.1,2.97]
[1729246829536,1.19922,2629.4,2629.3,0.38042]
[1729246830659,1.19922,2629.4,2629.2,0.7822]
[1729246830660,0.38042,2629.3,2629.2,1.16262]
[1729246834052,0.38042,2629.3,2629.2,2.53262]
[1729246835652,0.38042,2629.3,2629.2,2.13972]
[1729246835853,0.38042,2629.3,2629.2,1.37]
[1729246836038,0.38042,2629.3,2629.2,1.75043]
[1729246837742,0.8188,2629.4,2629.2,1.37]
[1729246837951,1.1992,2629.4,2629.3,1.75042]
[1729246838648,1.1992,2629.4,2629.1,0.3933]
[1729246838649,0.38042,2629.3,2629.2,0.426]
[1729246838855,0.38042,2629.3,2629.2,1.37]
[1729246839240,1.76983,2629.4,2628.9,3.2078]
[1729246839450,1.37,2629.0,2628.8,0.425]
[1729246839645,2.1857,2628.9,2628.7,1.37]
[1729246839946,2.1857,2628.9,2628.2,1.64590352]
[1729246839947,1.7979,2628.8,2628.6,1.37]
[1729246840155,2.17839,2628.8,2628.7,1.37]
[1729246840350,0.80839,2628.8,2628.7,1.37]
[1729246841853,0.80839,2628.8,2628.5,3.35053]
[1729246841854,0.38052,2628.7,2628.5,3.35053]
[1729246842250,0.38052,2628.6,2628.5,3.35053]
[1729246842745,0.38052,2628.6,2628.5,2.97]
[1729246843151,0.38051,2628.7,2628.5,3.35053]
[1729246843551,0.38052,2628.6,2628.5,2.97]
[1729246844949,0.38052,2628.6,2628.5,3.35054]
[1729246845148,0.4279,2628.8,2628.5,2.97]
[1729246845347,0.38049,2628.8,2628.7,2.97]
[1729246845550,4.0235,2628.9,2628.8,0.38049]
[1729246845750,4.40398,2628.9,2628.8,0.38049]
[1729246846161,4.0235,2628.9,2628.8,0.38049]
[1729246846456,3.6231,2628.9,2628.8,0.38049]
[1729246846658,4.00358,2628.9,2628.8,0.38049]
[1729246846959,3.6231,2628.9,2628.8,0.38049]
[1729246847258,3.2078,2628.9,2628.8,0.38049]
[1729246847950,0.4071,2629.0,2628.7,3.7621]
[1729246848159,0.4071,2629.0,2628.9,3.35048]
[1729246848355,0.78756,2629.0,2628.9,3.35048]
[1729246849660,0.78756,2629.0,2628.9,2.97]
[1729246850158,0.78735,2629.1,2628.9,3.35048]
[1729246850358,0.78735,2629.1,2628.9,2.97]
[1729246850656,0.38046,2629.0,2628.9,3.35047]
[1729246852359,0.4069,2629.1,2628.9,2.97]
[1729246852766,0.38046,2629.0,2628.9,3.35047]
[1729246853063,0.78736,2629.1,2628.9,3.35047]
[1729246853271,0.78736,2629.1,2629.0,0.38046]
[1729246853562,0.78736,2629.1,2628.9,2.97]
[1729246853563,0.78736,2629.1,2628.9,3.35047]
[1729246853954,0.78736,2629.1,2629.0,0.38046]
[1729246854151,0.38046,2629.1,2629.0,0.80256]
[1729246854562,3.6246,2629.2,2629.0,0.4221]
[1729246854863,0.38045,2629.1,2629.0,0.80256]
[1729246855363,0.38045,2629.1,2629.0,0.4221]
[1729246855759,0.38045,2629.1,2629.0,0.80256]
[1729246856161,4.00504,2629.2,2629.1,0.38045]
[1729246856366,0.38045,2629.1,2629.0,0.80256]
[1729246857764,0.38045,2629.1,2629.0,0.4221]
[1729246859458,0.38045,2629.1,2629.0,0.80256]
[1729246860260,0.38045,2629.1,2629.0,0.4221]
[1729246860682,3.6246,2629.2,2628.7,0.3938]
[1729246860966,0.38052,2628.7,2628.6,0.38052]
[1729246861166,0.38051,2628.7,2628.6,3.35051]
[1729246863766,0.38051,2628.7,2628.6,1.75051]
[1729246863957,1.37,2628.7,2628.4,0.99716527]
[1729246864160,1.37,2628.7,2628.3,4.01245]
[1729246864161,0.38055,2628.4,2628.3,4.01245]
[1729246864368,0.38055,2628.4,2628.3,5.38245]
[1729246864970,0.79744,2628.5,2628.4,0.38055]
[1729246865170,0.79744,2628.5,2628.4,1.75055]
[1729246865171,0.4169,2628.5,2628.4,1.75055]
[1729246865759,0.79744,2628.5,2628.4,1.75055]
[1729246869067,0.79744,2628.5,2628.4,1.37]
[1729246869772,0.79744,2628.5,2628.4,1.75055]
[1729246874175,0.4169,2628.5,2628.4,1.75055]
[1729246874563,0.79744,2628.5,2628.4,1.75055]
[1729246879474,0.4169,2628.5,2628.4,1.75055]
[1729246879674,0.79744,2628.5,2628.4,1.75055]
[1729246882377,0.4169,2628.5,2628.4,1.75055]
[1729246882676,0.79744,2628.5,2628.4,1.75055]
[1729246883380,0.4169,2628.5,2628.4,1.75055]
[1729246883783,0.79744,2628.5,2628.4,1.75055]
[1729246884577,0.4169,2628.5,2628.4,1.75055]
[1729246885971,0.4209,2628.6,2628.5,0.38054]
[1729246886177,0.4209,2628.6,2628.5,1.75054]
[1729246886677,0.806,2628.8,2628.7,0.38051]
[1729246886878,0.806,2628.8,2628.7,1.37]
[1729246887084,0.806,2628.8,2628.7,1.75051]
[1729246890086,0.806,2628.8,2628.7,1.37]
[1729246890284,0.806,2628.8,2628.7,1.75051]
[1729246891688,0.806,2628.8,2628.7,1.37]
[1729246894794,2.176,2628.8,2628.7,1.37]
[1729246895093,2.17599,2628.8,2628.7,1.37]
[1729246895592,1.7955,2628.8,2628.6,1.37]
[1729246895786,1.75051,2628.7,2628.6,1.37]
[1729246896680,1.37,2628.7,2628.2,3.6083]
[1729246896982,0.38058,2628.2,2628.1,1.37]
[1729246897182,1.75058,2628.2,2628.1,1.37]
[1729246897485,2.95508,2628.2,2628.1,1.37]
[1729246901292,1.58508,2628.2,2628.1,1.37]
[1729246909699,0.38061,2628.0,2627.9,0.78901]
[1729246909999,0.38061,2628.0,2627.9,0.4084]
[1729246910189,0.38061,2628.0,2627.9,1.7784]
[1729246910990,0.38061,2628.0,2627.9,2.15902]
[1729246914603,0.38061,2628.0,2627.9,1.7784]
[1729246915191,0.38061,2628.0,2627.9,2.15902]
[1729246916798,0.38061,2628.0,2627.9,1.7784]
[1729246919495,1.75061,2628.0,2627.9,0.4084]
[1729246919802,0.38064,2627.8,2627.7,1.42084795]
[1729246920009,1.75064,2627.8,2627.7,2.79084795]
[1729246920303,0.38064,2627.8,2627.7,2.79084795]
[1729246922195,0.38064,2627.8,2627.7,0.99534795]
[1729246922400,0.38064,2627.8,2627.7,2.36534795]
[1729246922900,0.77684,2627.8,2627.7,2.36534795]
[1729246925509,0.77684,2627.8,2627.7,1.37]
[1729246926006,1.7662,2627.8,2627.6,0.4171]
[1729246926199,0.38068,2627.5,2627.4,1.38974795]
[1729246926408,1.75068,2627.5,2627.4,3.16184795]
[1729246927801,1.75068,2627.5,2627.4,2.76744795]
[1729246928009,0.38068,2627.5,2627.4,3.14813795]
[1729246928409,0.38067,2627.6,2627.5,0.38068]
[1729246928605,0.38067,2627.6,2627.5,1.7683]
[1729246928807,0.38067,2627.6,2627.5,2.14898]
[1729246929013,0.38067,2627.6,2627.5,1.7683]
[1729246929511,0.38067,2627.6,2627.5,2.14898]
[1729246929904,0.38067,2627.6,2627.5,1.7683]
[1729246930409,0.3962,2627.8,2627.5,1.7683]
[1729246930607,0.3962,2627.8,2627.7,1.37]
[1729246930608,0.38064,2627.8,2627.7,1.37]
[1729246930807,0.38064,2627.8,2627.7,1.75065]
[1729246931806,0.95148,2628.2,2628.1,0.38059]
[1729246931807,0.38059,2628.2,2628.1,0.38059]
[1729246932009,0.38059,2628.2,2628.1,1.37]
[1729246932312,0.38059,2628.2,2628.1,1.75059]
[1729246932513,0.38059,2628.2,2628.1,1.37]
[1729246933308,0.38059,2628.2,2628.1,1.7703]
[1729246933509,1.75059,2628.2,2628.1,1.7703]
[1729246934507,0.38059,2628.2,2628.1,1.7703]
[1729246937412,1.75059,2628.2,2628.1,1.7703]
[1729246937613,0.38058,2628.3,2628.1,1.7703]
[1729246937818,0.38058,2628.3,2628.2,1.37]
[1729246938122,0.38058,2628.3,2628.2,1.7656]
[1729246941312,0.95131,2628.7,2628.2,2.14617]
[1729246941313,0.38053,2628.6,2628.2,2.14617]
[1729246941518,0.38053,2628.6,2628.5,1.37]
[1729246941815,0.8135,2628.8,2628.5,1.37]
[1729246942016,0.38052,2628.7,2628.6,1.37]
[1729246942221,0.38049,2628.9,2628.6,1.37]
[1729246942519,0.38049,2628.9,2628.8,1.37]
[1729246942820,41.18049,2628.9,2628.8,1.37]
[1729246943229,0.38049,2628.9,2628.8,1.37]
[1729246944016,40.8,2629.0,2628.8,1.75049]
[1729246944316,0.38044,2629.2,2628.9,1.37]
[1729246944516,0.38044,2629.2,2629.1,1.37]
[1729246944714,41.18044,2629.2,2629.1,1.37]
[1729246944915,40.8,2629.2,2629.1,1.37]
[1729246945326,0.38043,2629.3,2629.1,1.37]
[1729246945525,0.38043,2629.3,2629.2,1.37]
[1729246945915,41.18043,2629.3,2629.2,1.37]
[1729246946320,41.18043,2629.3,2629.1,1.37]
[1729246946321,42.17,2629.3,2629.1,1.37]
[1729246946520,0.38044,2629.2,2629.1,1.37]
[1729246954723,0.38044,2629.2,2629.1,1.37]
[1729246955323,40.8,2629.3,2629.1,1.37]
[1729246955523,41.18043,2629.3,2629.2,1.37]
[1729246955925,0.38043,2629.3,2629.2,1.37]
[1729246956325,0.38041,2629.4,2629.2,1.37]
[1729246956538,41.5902,2629.5,2628.9,3.6068]
[1729246956539,0.7902,2629.5,2629.3,1.37]
[1729246956828,1.17059,2629.5,2629.4,1.7914]
[1729246958629,2.54059,2629.5,2629.4,0.4214]
[1729246958835,2.54059,2629.5,2629.3,1.37]
[1729246958836,0.3804,2629.4,2629.3,1.37]
[1729246967042,0.3804,2629.4,2629.3,1.75042]
[1729246967248,0.3804,2629.5,2629.4,0.3804]
[1729246967438,0.3804,2629.5,2629.4,2.5496]
[1729246968136,0.3804,2629.5,2629.4,2.1692]
[1729246968941,0.3804,2629.5,2629.4,5.377]
[1729246970139,0.3804,2629.5,2629.4,5.7574]
[1729246970638,0.3804,2629.5,2629.4,5.377]
[1729246971241,0.3804,2629.5,2629.4,5.7574]
[1729246971551,0.3804,2629.5,2629.4,5.377]
[1729246971849,0.3804,2629.5,2629.4,5.7574]
[1729246973071,40.8,2629.8,2629.4,6.747]
[1729246973345,40.8,2629.8,2629.7,1.75036]
[1729246973346,0.38035,2629.8,2629.7,1.75036]
[1729246973546,0.38038,2629.6,2629.5,0.78879]
[1729246973746,0.38038,2629.6,2629.5,2.15879]
[1729246973946,0.38038,2629.6,2629.5,3.52879]
[1729246974737,0.38038,2629.6,2629.5,3.1484]
[1729246974938,0.38038,2629.6,2629.5,2.15879]
[1729246975145,0.38038,2629.6,2629.5,3.52879]
[1729246976044,0.38038,2629.6,2629.5,1.7784]
[1729246976651,0.38038,2629.6,2629.5,2.15879]
[1729246977347,0.38038,2629.6,2629.5,3.52879]
[1729246978145,44.95858,2630.1,2629.5,6.9516]
[1729246978358,0.3803,2630.1,2630.0,1.37]
[1729246978541,0.3803,2630.1,2630.0,4.95811]
[1729246979454,0.3803,2630.1,2630.0,4.5778]
[1729246979950,0.3803,2630.1,2630.0,5.37052]
[1729246980341,0.3803,2630.1,2630.0,4.9902]
[1729246980545,0.3803,2630.1,2630.0,5.37052]
[1729246980848,0.3803,2630.1,2630.0,4.9902]
[1729246981146,0.3803,2630.1,2630.0,4.5778]
[1729246981962,0.3803,2630.1,2630.0,3.2078]
[1729246982158,0.3803,2630.1,2630.0,4.5778]
[1729246982343,1.7503,2630.1,2630.0,3.2078]
[1729246982650,0.3803,2630.1,2630.0,4.5778]
[1729246983444,1.7503,2630.1,2630.0,4.5778]
[1729246983653,0.3803,2630.1,2630.0,4.5778]
[1729246984651,1.7503,2630.1,2630.0,1.37]
[1729246984950,0.38032,2630.0,2629.9,1.37]
[1729246985248,1.7503,2630.1,2630.0,1.37]
[1729246985449,0.3803,2630.1,2630.0,1.37]
[1729246990157,1.7503,2630.1,2630.0,1.37]
[1729246990354,1.37,2630.1,2629.9,1.37]
[1729246990555,0.38032,2630.0,2629.9,1.37]
[1729246990948,1.75032,2630.0,2629.9,1.37]
[1729246991153,0.38032,2630.0,2629.9,1.37]
[1729246995360,1.37,2630.0,2629.6,0.4037]
[1729246995563,0.38036,2629.7,2629.6,0.4037]
[1729246995750,0.4105,2629.9,2629.6,1.7737]
[1729246995945,0.38035,2629.8,2629.7,0.38036]
[1729246996560,0.38035,2629.8,2629.6,0.4037]
[1729246996760,0.38035,2629.8,2629.7,1.37]
[1729247006375,0.38034,2629.9,2629.8,0.38035]
[1729247006685,0.38034,2629.9,2629.8,2.58845]
[1729247006971,0.38034,2629.9,2629.8,2.2081]
[1729247007569,0.38034,2629.9,2629.8,2.58845]
[1729247007869,0.8291,2630.3,2629.8,5.4159]
[1729247008164,0.38028,2630.3,2630.2,1.75028]
[1729247008366,0.38027,2630.3,2630.2,1.75028]
[1729247008561,0.3959,2630.4,2630.2,1.75028]
[1729247008758,0.77616,2630.4,2630.3,1.37]
[1729247009462,0.38026,2630.4,2630.3,1.37]
[1729247009871,0.38026,2630.4,2630.3,1.7606]
[1729247010792,3.2078,2630.5,2630.3,1.7606]
[1729247010975,3.58805,2630.5,2630.4,1.37]
[1729247011661,3.58805,2630.5,2630.4,1.7751]
[1729247012885,0.4281,2631.2,2630.4,8.7845]
[1729247013346,5.28891272,2631.5,2631.0,3.2078]
[1729247013347,0.4296,2631.3,2631.0,3.2078]
[1729247013504,0.4296,2631.3,2631.1,3.563]
[1729247013505,0.38014,2631.3,2631.1,3.563]
[1729247013776,0.3921,2631.5,2631.0,3.2078]
[1729247013777,3.14197,2631.5,2631.0,3.2078]
[1729247013923,0.38014,2631.2,2631.0,3.2078]
[1729247014083,0.38016,2631.1,2631.0,3.2078]
[1729247014276,0.38016,2631.1,2631.0,4.5778]
[1729247014775,0.79276,2631.1,2631.0,4.5778]
[1729247014977,0.79276,2631.1,2631.0,3.2078]
[1729247015266,2.16276,2631.1,2631.0,1.37]
[1729247015674,0.79276,2631.1,2631.0,1.37]
[1729247015874,0.3802,2630.9,2630.8,2.97]
[1729247018675,0.4006,2631.0,2630.8,2.97]
[1729247018973,0.78078,2631.0,2630.9,0.3994]
[1729247023170,0.4126,2631.1,2630.9,0.3994]
[1729247023382,0.79277,2631.1,2630.9,0.77959]
[1729247023570,0.79277,2631.1,2631.0,0.4258]
[1729247026784,0.4126,2631.1,2631.0,0.4258]
[1729247027081,0.4126,2631.1,2631.0,3.77597]
[1729247027271,0.77865,2631.2,2631.0,3.3958]
[1729247027272,0.3985,2631.2,2631.0,3.3958]
[1729247027479,0.4019,2631.4,2631.2,0.38013]
[1729247027480,0.78202,2631.4,2631.2,0.38013]
[1729247027668,0.78202,2631.4,2631.3,2.97]
[1729247029276,0.38014,2631.2,2631.1,6.1778]
[1729247029475,0.4019,2631.4,2631.1,6.55795]
[1729247029675,0.38014,2631.2,2631.1,6.55795]
[1729247029880,0.38014,2631.2,2631.1,6.55796]
[1729247030085,0.38014,2631.2,2631.1,3.2078]
[1729247030381,0.95033,2631.3,2630.7,2.97]
[1729247030572,0.38018,2631.0,2630.8,0.38019]
[1729247030777,0.4201,2631.1,2630.8,0.38019]
[1729247030778,0.38019,2630.9,2630.8,0.38019]
[1729247030984,0.80449,2630.9,2630.8,0.38019]
[1729247031383,0.4243,2630.9,2630.7,2.97]
[1729247031613,0.8045,2630.9,2630.8,3.588]
[1729247033075,0.8045,2630.9,2630.8,3.2078]
[1729247033301,0.8045,2630.9,2630.8,3.588]
[1729247033485,0.80449,2630.9,2630.8,3.588]
[1729247033692,0.80449,2630.9,2630.8,3.2078]
[1729247033886,0.80449,2630.9,2630.8,3.588]
[1729247034284,0.4034,2631.0,2630.8,3.2078]
[1729247034594,0.4034,2631.0,2630.9,3.35019]
[1729247034890,0.4034,2631.0,2630.9,4.16779]
[1729247034891,0.38017,2631.0,2630.9,4.16779]
[1729247035080,0.4144,2631.3,2630.9,4.16779]
[1729247035081,0.4064,2631.2,2630.9,3.7876]
[1729247035279,0.78655,2631.2,2631.1,3.35016]
[1729247035478,0.78655,2631.2,2631.1,2.97]
[1729247035899,0.78655,2631.2,2631.1,1.75016]
[1729247036691,0.78655,2631.2,2631.1,1.37]
[1729247037083,0.78655,2631.2,2631.1,1.75016]
[1729247037278,0.78655,2631.2,2631.1,1.37]
[1729247038285,0.78655,2631.2,2631.1,1.75016]
[1729247038686,0.78655,2631.2,2631.1,1.37]
[1729247040988,0.4064,2631.2,2630.9,0.4039]
[1729247041193,0.38019,2630.9,2630.8,3.2078]
[1729247041379,0.38019,2630.9,2630.8,4.5778]
[1729247043085,0.38019,2630.9,2630.8,4.9727]
[1729247044382,0.38019,2630.9,2630.8,5.3529]
[1729247044582,0.38019,2630.9,2630.8,4.9727]
[1729247044888,1.75019,2630.9,2630.8,4.5778]
[1729247045095,0.38019,2630.9,2630.8,4.5778]
[1729247047106,0.38019,2630.9,2630.8,1.37]
[1729247052192,0.38019,2630.9,2630.8,1.7502]
[1729247052395,0.7889,2631.0,2630.8,1.7727]
[1729247052600,40.8,2631.6,2630.8,1.7727]
[1729247052601,40.8,2631.6,2630.9,2.74]
[1729247052789,0.38012,2631.4,2631.3,0.38012]
[1729247053102,0.801,2631.5,2631.3,0.38012]
[1729247053418,0.38012,2631.4,2631.2,1.20643]
[1729247053700,0.38012,2631.4,2631.3,1.75013]
[1729247053794,0.38012,2631.4,2631.3,1.37]
[1729247054293,0.3801,2631.6,2631.4,0.3801]
[1729247054492,0.38009,2631.6,2631.5,1.37]
[1729247055088,0.38009,2631.6,2631.2,1.20644]
[1729247055089,0.38012,2631.4,2631.2,1.20644]
[1729247055291,0.4007,2631.7,2631.3,1.37]
[1729247055493,2.15077,2631.7,2631.6,1.37]
[1729247055804,0.38011,2631.5,2631.3,3.35013]
[1729247055990,0.38012,2631.4,2631.3,2.97]
[1729247056393,0.38011,2631.5,2631.3,3.35012]
[1729247056596,0.4007,2631.7,2631.3,2.97]
[1729247056795,0.38012,2631.4,2631.3,2.97]
[1729247056995,0.4007,2631.7,2631.1,6.1778]
[1729247057188,0.38014,2631.2,2631.1,6.1778]
[1729247057393,0.38014,2631.2,2631.1,2.97]
[1729247058693,0.38014,2631.2,2631.1,6.1778]
[1729247058902,0.38014,2631.2,2630.9,3.7525]
[1729247058903,0.38017,2631.0,2630.9,3.7525]
[1729247059102,0.38017,2631.0,2630.9,3.74329]
[1729247059300,0.38017,2631.0,2630.9,3.3631]
[1729247059600,0.38017,2631.0,2630.9,3.74329]
[1729247059992,0.38017,2631.1,2631.0,0.38017]
[1729247060993,0.38017,2631.1,2630.9,3.3631]
[1729247060994,0.38016,2631.2,2630.9,3.3631]